bitfinex-derivatives/quotes_ETHF0:USTF0_20250422
["timestamp","ask_amount","ask_price","bid_price","bid_amount"]
[1745313062042,5.57333,1625.7,1625.6,7.00181]
[1745313062240,4.343,1625.7,1625.6,7.00181]
[1745313062440,5.57333,1625.7,1625.6,7.00181]
[1745313063635,4.343,1625.7,1625.6,12.00181]
[1745313063840,5.5742,1625.9,1625.8,1.23022]
[1745313064140,5.57418,1625.9,1625.8,1.23022]
[1745313064540,5.57418,1625.9,1625.8,5.32012]
[1745313064841,4.344,1625.9,1625.8,5.32012]
[1745313065336,5.57418,1625.9,1625.8,5.32012]
[1745313065737,1.23015,1626.0,1625.9,1.23015]
[1745313065932,5.57315,1626.0,1625.9,2.09115]
[1745313067735,4.343,1626.0,1625.9,2.09115]
[1745313067931,0.00922196,1626.1,1626.0,1.23011]
[1745313068133,0.00922196,1626.1,1626.0,4.43791]
[1745313068640,1.23925196,1626.1,1626.0,3.2078]
[1745313068843,0.00922196,1626.1,1626.0,4.43791]
[1745313070143,1.23925196,1626.1,1626.0,4.43791]
[1745313072339,0.00922196,1626.1,1626.0,4.43791]
[1745313076538,1.23925196,1626.1,1626.0,4.43791]
[1745313076739,0.00922196,1626.1,1626.0,4.43791]
[1745313077631,1.23925196,1626.1,1626.0,4.43791]
[1745313077836,0.00922196,1626.1,1626.0,4.43791]
[1745313080441,1.77782196,1626.1,1626.0,4.43791]
[1745313080641,3.00785196,1626.1,1626.0,4.43791]
[1745313081441,3.00785196,1626.1,1626.0,1.23011]
[1745313084142,3.00785196,1626.1,1626.0,4.43791]
[1745313084943,3.00785196,1626.1,1626.0,6.22701]
[1745313087745,3.00785196,1626.1,1626.0,3.01921]
[1745313087947,1.77782196,1626.1,1626.0,3.01921]
[1745313088543,3.00785196,1626.1,1626.0,1.23011]
[1745313089942,1.23011,1626.0,1625.9,0.0144]
[1745313090146,3.07546,1625.9,1625.6,2.12307]
[1745313090447,1.23033,1625.7,1625.6,1.23041]
[1745313090642,1.23041,1625.6,1625.5,4.44745196]
[1745313090853,2.07041,1625.6,1625.5,4.44745196]
[1745313091037,2.07041,1625.6,1625.5,1.23965196]
[1745313092947,2.07041,1625.6,1625.5,0.00922196]
[1745313093643,3.76501,1625.6,1625.5,0.00922196]
[1745313097342,1.23048,1625.5,1625.4,40.8]
[1745313097549,1.23048,1625.5,1625.2,2.89027]
[1745313097550,1.23057,1625.4,1625.2,2.05207]
[1745313097749,2.5129,1625.3,1625.2,2.05207]
[1745313097949,2.5129,1625.3,1625.2,42.85207]
[1745313098151,2.5129,1625.3,1625.2,49.17407]
[1745313099046,2.5129,1625.3,1625.2,48.35271]
[1745313099244,2.5129,1625.3,1625.2,42.03071]
[1745313100442,3.74354,1625.3,1625.2,42.03071]
[1745313100648,2.5129,1625.3,1625.2,42.03071]
[1745313101151,3.74354,1625.3,1625.2,42.03071]
[1745313101450,3.74354,1625.3,1625.2,40.8]
[1745313102048,3.74354,1625.3,1624.9,3.2078]
[1745313102049,2.5129,1625.3,1624.9,3.2078]
[1745313102251,6.0982,1625.2,1624.9,3.77322]
[1745313102453,1.23086,1625.0,1624.9,2.10252]
[1745313102653,1.23086,1625.0,1624.9,41.6716]
[1745313102956,2.05286,1625.0,1624.9,41.6716]
[1745313103757,2.05286,1625.0,1624.9,42.90254]
[1745313104054,0.822,1625.0,1624.9,42.90254]
[1745313104354,0.822,1625.0,1624.9,44.58774]
[1745313104558,3.86236,1625.0,1624.9,43.3568]
[1745313105051,3.86236,1625.0,1624.9,44.58774]
[1745313105252,3.86236,1625.0,1624.9,41.6716]
[1745313106042,10.70868,1625.0,1624.6,6.12415]
[1745313106249,1.23109,1624.7,1624.6,0.8871]
[1745313106449,1.23109,1624.7,1624.6,41.6871]
[1745313106954,1.23109,1624.7,1624.6,0.8871]
[1745313107254,1.23117,1624.6,1624.5,8.14384589]
[1745313107455,1.23124,1624.5,1624.4,3.2078]
[1745313107650,1.23124,1624.5,1624.3,2.11856]
[1745313107852,2.88502,1624.4,1624.3,0.8872]
[1745313108249,1.6537,1624.4,1624.3,0.8872]
[1745313108451,1.6537,1624.4,1624.3,2.11859]
[1745313108655,5.56404,1624.8,1624.6,1.23112]
[1745313108956,3.2078,1625.0,1624.9,1.23094]
[1745313108957,5.1675,1625.0,1624.9,1.23094]
[1745313109144,6.8212,1625.0,1624.8,1.23095]
[1745313109350,2.88464,1624.9,1624.7,4.80392]
[1745313109554,1.6537,1624.9,1624.8,1.23101]
[1745313109754,2.88464,1624.9,1624.8,40.8]
[1745313111659,1.6537,1624.9,1624.8,40.8]
[1745313111854,2.88464,1624.9,1624.8,40.8]
[1745313114647,1.6537,1624.9,1624.8,42.03101]
[1745313114851,1.6537,1624.9,1624.8,43.69391]
[1745313115562,2.88464,1624.9,1624.8,42.4629]
[1745313116053,1.23101,1624.8,1624.7,7.2092]
[1745313116252,2.98141,1624.8,1624.7,0.8872]
[1745313118859,1.23121,1624.6,1624.4,1.23128]
[1745313119156,8.11784,1624.7,1624.4,2.08488]
[1745313119363,1.6626,1624.6,1624.5,42.03124]
[1745313119662,2.89377,1624.6,1624.5,40.8]
[1745313121753,1.23124,1624.5,1624.4,0.8536]
[1745313121954,6.45526,1624.7,1624.5,1.23123]
[1745313122151,1.6601,1624.6,1624.5,1.23123]
[1745313122352,2.89127,1624.6,1624.5,1.7117]
[1745313122865,2.89127,1624.6,1624.4,42.88487]
[1745313123163,1.6601,1624.5,1624.4,42.88492]
[1745313123564,2.89134,1624.5,1624.4,43.3653]
[1745313123767,1.6601,1624.5,1624.4,44.59662]
[1745313125960,2.89134,1624.5,1624.4,0.8536]
[1745313126758,2.89134,1624.5,1624.3,0.88]
[1745313126759,1.6601,1624.5,1624.2,40.8]
[1745313126958,7.27155,1624.4,1624.3,0.8918]
[1745313127167,6.0402,1624.4,1624.3,2.12319]
[1745313127463,4.334,1624.4,1624.3,6.98769]
[1745313129961,4.334,1624.4,1624.3,11.98769]
[1745313130867,4.335,1624.5,1624.3,3.2078]
[1745313131056,1.23132,1624.4,1624.3,5.29219]
[1745313131258,1.23132,1624.4,1624.3,7.75989]
[1745313131662,7.277,1624.5,1624.4,1.23132]
[1745313131862,7.277,1624.5,1624.4,2.86732]
[1745313133367,1.23132,1624.4,1624.3,4.8925]
[1745313133666,2.94202,1624.4,1624.3,4.8925]
[1745313133867,1.7107,1624.4,1624.3,6.12389]
[1745313134660,2.94202,1624.4,1624.3,4.8925]
[1745313134969,3.81942,1624.4,1624.3,2.91609]
[1745313135368,2.5881,1624.4,1624.3,2.91609]
[1745313135565,1.7107,1624.4,1624.3,2.91609]
[1745313135760,1.7107,1624.4,1624.3,7.81339]
[1745313136961,1.7107,1624.4,1624.3,5.29219]
[1745313138366,7.27202,1624.4,1624.3,5.29219]
[1745313138668,6.0407,1624.4,1624.3,5.29219]
[1745313138865,7.27202,1624.4,1624.3,4.0608]
[1745313139566,7.27202,1624.4,1624.3,3.2078]
[1745313140263,6.0407,1624.4,1624.1,7.8284]
[1745313140465,3.78062,1624.3,1624.2,1.23147]
[1745313140667,2.5492,1624.3,1624.2,1.23147]
[1745313140864,2.5492,1624.3,1624.2,2.88617]
[1745313141766,2.5492,1624.3,1624.2,1.23147]
[1745313141967,1.23147,1624.2,1624.1,7.73968]
[1745313142167,2.91447,1624.2,1624.1,7.73968]
[1745313142569,1.683,1624.2,1624.1,7.73968]
[1745313144576,2.91447,1624.2,1624.1,7.73968]
[1745313146574,2.91447,1624.2,1624.1,4.53188]
[1745313146773,2.91447,1624.2,1624.1,7.73968]
[1745313147977,2.91447,1624.2,1624.1,6.5082]
[1745313148277,2.91447,1624.2,1624.1,7.73974]
[1745313149679,2.91447,1624.2,1624.1,6.5082]
[1745313149879,2.91447,1624.2,1624.1,4.0277]
[1745313150579,2.91447,1624.2,1624.1,3.2078]
[1745313150878,2.91447,1624.2,1624.1,4.051]
[1745313151179,2.91447,1624.2,1624.1,5.28254]
[1745313151371,2.91447,1624.2,1624.1,7.01634]
[1745313151569,1.683,1624.2,1624.1,7.01634]
[1745313151874,2.91447,1624.2,1624.1,7.01634]
[1745313152083,1.683,1624.2,1624.1,7.01634]
[1745313152777,2.91447,1624.2,1624.1,5.28254]
[1745313152980,2.91447,1624.2,1624.1,4.051]
[1745313153182,2.91447,1624.2,1624.1,5.28254]
[1745313153479,2.91447,1624.2,1624.1,4.051]
[1745313154680,2.91447,1624.2,1624.1,3.2078]
[1745313154979,1.23154,1624.1,1624.0,0.8352]
[1745313155182,1.23173,1623.9,1623.7,3.2078]
[1745313155491,1.23165,1624.0,1623.8,0.8352]
[1745313155679,2.89945,1624.0,1623.9,3.2078]
[1745313155880,2.89945,1624.0,1623.9,4.4395]
[1745313156082,2.89945,1624.0,1623.9,3.2078]
[1745313157786,1.6678,1624.0,1623.9,4.4395]
[1745313158082,4.33,1624.1,1624.0,1.23162]
[1745313158384,4.33,1624.1,1624.0,2.93392]
[1745313159103,4.33,1624.1,1624.0,50.05592]
[1745313159296,5.56154,1624.1,1624.0,50.05592]
[1745313159901,7.19804,1624.1,1624.0,47.122]
[1745313161004,7.19804,1624.1,1624.0,6.322]
[1745313161191,1.23162,1624.0,1623.9,5.7814]
[1745313161396,2.99292,1624.0,1623.9,46.5814]
[1745313161703,3.84172,1624.0,1623.9,46.5814]
[1745313162303,3.84172,1624.0,1623.9,47.8131]
[1745313163103,3.84172,1624.0,1623.9,44.0078]
[1745313163306,3.84172,1624.0,1623.9,40.8]
[1745313165005,3.84172,1624.0,1623.9,42.0317]
[1745313165197,3.84172,1624.0,1623.9,40.8]
[1745313165504,3.84172,1624.0,1623.9,42.0317]
[1745313165706,2.6101,1624.0,1623.9,43.7865]
[1745313165902,3.84172,1624.0,1623.9,43.4586]
[1745313167108,3.84172,1624.0,1623.9,40.8]
[1745313167303,7.6101,1624.0,1623.6,3.2078]
[1745313167507,1.6996,1623.9,1623.6,4.43972]
[1745313167806,5.55777,1623.8,1623.7,0.8245]
[1745313168013,5.55777,1623.8,1623.7,3.4039]
[1745313170005,5.55777,1623.8,1623.7,1.6984]
[1745313170801,5.55777,1623.8,1623.7,0.8245]
[1745313174308,5.55777,1623.8,1623.7,2.4705]
[1745313174512,5.55777,1623.8,1623.7,3.70235]
[1745313175211,5.55777,1623.8,1623.7,2.4705]
[1745313175406,4.326,1623.9,1623.8,1.23173]
[1745313175611,4.326,1623.9,1623.8,3.73013]
[1745313176410,4.326,1623.9,1623.8,2.4984]
[1745313176608,5.5577,1623.9,1623.8,2.4984]
[1745313176812,17.46031742,1623.9,1623.8,2.4984]
[1745313177411,17.46031742,1623.9,1623.8,3.73017]
[1745313177613,17.46031742,1623.9,1623.8,2.4984]
[1745313178104,17.46032742,1623.9,1623.7,2.05629]
[1745313178305,1.6483,1623.8,1623.7,2.05629]
[1745313178504,1.6483,1623.8,1623.7,3.76079]
[1745313179211,1.6483,1623.8,1623.7,2.05629]
[1745313179804,1.6483,1623.8,1623.7,3.84199]
[1745313180017,4.326,1623.9,1623.8,1.23177]
[1745313180314,6.0093,1623.9,1623.8,3.01747]
[1745313180713,6.0093,1623.9,1623.8,6.22527]
[1745313180916,2.08048,1624.0,1623.8,6.22527]
[1745313180917,13.46211742,1624.2,1624.1,1.23154]
[1745313181117,17.15281742,1624.2,1624.1,1.23154]
[1745313181611,18.38428742,1624.2,1624.1,1.23154]
[1745313183018,17.15281742,1624.2,1624.1,1.23154]
[1745313183221,16.26461742,1624.2,1624.1,1.23154]
[1745313183410,16.26461742,1624.2,1624.1,3.01944]
[1745313185421,6.0103,1624.2,1624.1,3.01944]
[1745313191121,0.00922196,1624.4,1624.3,1.23139]
[1745313191324,4.32824042,1624.4,1624.3,1.23139]
[1745313191623,4.32824042,1624.4,1624.3,3.77019]
[1745313191824,6.03084042,1624.4,1624.3,3.77019]
[1745313192423,16.28515784,1624.4,1624.3,3.77019]
[1745313192827,10.25655784,1624.4,1624.3,3.77019]
[1745313193329,10.25655784,1624.4,1624.3,8.77019]
[1745313194724,10.25655784,1624.4,1624.3,49.57019]
[1745313195030,0.00224042,1624.4,1624.3,42.86939]
[1745313195414,1.23356042,1624.4,1624.3,42.86939]
[1745313195723,3.03776042,1624.4,1624.3,42.86939]
[1745313196115,1.80644042,1624.4,1624.3,42.86939]
[1745313198422,1.80644042,1624.4,1624.3,44.52519]
[1745313198631,0.00224042,1624.4,1624.3,44.52519]
[1745313208728,0.00224042,1624.4,1624.3,47.73299]
[1745313210639,0.00224042,1624.4,1624.2,6.32898155]
[1745313210835,1.23139,1624.3,1624.2,7.56041155]
[1745313211137,2.97199,1624.3,1624.2,1.23841155]
[1745313211531,1.7406,1624.3,1624.2,1.23841155]
[1745313212731,1.7406,1624.3,1624.2,3.84951155]
[1745313213442,1.7406,1624.3,1624.2,10.17151155]
[1745313215741,5.22104042,1624.4,1624.3,1.23139]
[1745313216041,6.94564042,1624.4,1624.3,6.17639]
[1745313216437,2.62564042,1624.4,1624.3,6.17639]
[1745313220739,1.72684042,1624.4,1624.3,6.17639]
[1745313225545,2.95816042,1624.4,1624.3,6.17639]
[1745313225746,1.72684042,1624.4,1624.3,6.17639]
[1745313226646,1.72684042,1624.4,1624.3,46.97639]
[1745313233950,2.95816042,1624.4,1624.3,44.0078]
[1745313234554,1.72684042,1624.4,1624.3,45.23919]
[1745313235054,2.95816042,1624.4,1624.3,44.0078]
[1745313235353,2.95816042,1624.4,1624.3,42.03139]
[1745313235557,1.72684042,1624.4,1624.3,42.03139]
[1745313239755,2.95816042,1624.4,1624.3,42.03139]
[1745313240053,2.95816042,1624.4,1624.3,1.23139]
[1745313240358,1.72684042,1624.4,1624.3,1.23139]
[1745313241060,1.72684042,1624.4,1624.3,42.03139]
[1745313241659,1.72684042,1624.4,1624.3,45.23919]
[1745313242460,11.98115784,1624.4,1624.3,45.23919]
[1745313244061,11.98115784,1624.4,1624.3,42.03139]
[1745313247363,11.98115784,1624.4,1624.3,42.90049]
[1745313248863,13.21247784,1624.4,1624.3,42.90049]
[1745313249059,11.98115784,1624.4,1624.3,42.90049]
[1745313249862,13.21247784,1624.4,1624.3,1.23139]
[1745313250258,13.21247784,1624.4,1624.3,42.03139]
[1745313250459,2.95816042,1624.4,1624.3,42.03139]
[1745313251855,1.72684042,1624.4,1624.3,42.03139]
[1745313252056,2.95816042,1624.4,1624.3,42.03139]
[1745313252765,1.72684042,1624.4,1624.3,42.03139]
[1745313256064,1.72684042,1624.4,1624.2,4.11538155]
[1745313256256,6.38789,1624.3,1624.2,0.00698155]
[1745313256457,4.311,1624.3,1624.2,1.23845155]
[1745313256658,4.311,1624.3,1624.2,42.03845155]
[1745313257163,4.311,1624.3,1624.2,44.58425155]
[1745313258365,6.0766,1624.3,1624.2,44.58425155]
[1745313261362,4.311,1624.3,1624.2,47.79205155]
[1745313261868,0.00224042,1624.4,1624.3,1.23139]
[1745313262059,0.00224042,1624.4,1624.3,3.71779]
[1745313262060,1.23356042,1624.4,1624.3,3.71779]
[1745313262257,3.02156042,1624.4,1624.3,3.71779]
[1745313263070,3.02156042,1624.4,1624.3,2.06789]
[1745313263568,1.79024042,1624.4,1624.3,2.06789]
[1745313266372,0.00224042,1624.4,1624.3,2.06789]
[1745313266668,14.08330141,1624.7,1624.6,1.23117]
[1745313267266,15.31439141,1624.7,1624.5,4.73738]
[1745313267467,15.31439141,1624.7,1624.6,1.7087]
[1745313268065,15.31439141,1624.7,1624.6,2.93987]
[1745313269475,15.31439141,1624.7,1624.6,1.7087]
[1745313270170,15.31439141,1624.7,1624.6,2.93987]
[1745313270676,13.25264552,1624.7,1624.6,2.93987]
[1745313271367,13.25264552,1624.7,1624.6,1.7087]
[1745313271871,13.25264552,1624.7,1624.6,2.93987]
[1745313272071,13.25264552,1624.7,1624.6,1.7087]
[1745313272375,1.23117,1624.6,1624.5,1.735]
[1745313272569,1.7702,1624.6,1624.5,2.96624]
[1745313272763,1.7702,1624.6,1624.5,1.735]
[1745313272764,3.00137,1624.6,1624.5,1.735]
[1745313272962,3.85487,1624.6,1624.5,1.735]
[1745313273770,1.23124,1624.5,1624.4,3.2078]
[1745313273971,1.7675,1624.5,1624.4,4.43912]
[1745313274466,1.7675,1624.5,1624.4,6.18722]
[1745313275377,7.30974,1624.5,1624.4,3.2078]
[1745313275577,1.23132,1624.4,1624.3,0.8498]
[1745313275780,2.99882,1624.4,1624.3,0.8498]
[1745313277276,1.23139,1624.3,1624.2,40.80698155]
[1745313277478,3.86809,1624.3,1624.2,40.80698155]
[1745313277885,7.07589,1624.3,1624.2,40.80698155]
[1745313278086,3.86809,1624.3,1624.2,40.80698155]
[1745313278777,3.86809,1624.3,1624.2,42.03845155]
[1745313278976,1.7382,1624.3,1624.2,43.67685155]
[1745313279183,13.26199552,1624.4,1624.2,42.44538155]
[1745313279382,13.26199552,1624.4,1624.3,0.8823]
[1745313279582,11.52379552,1624.4,1624.3,0.8823]
[1745313280484,1.23139,1624.3,1624.2,40.80698155]
[1745313281583,1.23139,1624.3,1624.2,42.03845155]
[1745313282181,1.23139,1624.3,1624.2,42.52538155]
[1745313282386,1.23139,1624.3,1624.2,43.75685155]
[1745313282580,1.23139,1624.3,1624.2,42.52538155]
[1745313285094,1.23139,1624.3,1624.2,40.80698155]
[1745313286687,17.56370141,1624.5,1624.2,42.03842155]
[1745313286891,1.23139,1624.3,1624.2,43.84762155]
[1745313287291,1.23139,1624.3,1624.2,42.61618155]
[1745313287791,1.23139,1624.3,1624.2,43.84765155]
[1745313289093,17.56370141,1624.5,1624.2,43.84765155]
[1745313289094,1.23138,1624.4,1624.2,43.84765155]
[1745313289297,1.23139,1624.3,1624.2,43.84765155]
[1745313289793,1.23139,1624.3,1624.2,42.61618155]
[1745313290293,1.23139,1624.3,1624.2,43.84765155]
[1745313290595,1.23139,1624.3,1624.2,42.61618155]
[1745313291093,1.23139,1624.3,1624.2,43.84765155]
[1745313292894,1.23139,1624.3,1624.2,42.61618155]
[1745313294588,2.98249,1624.3,1624.2,42.61618155]
[1745313295694,2.98249,1624.3,1624.2,43.84765155]
[1745313295890,2.98249,1624.3,1624.2,42.61618155]
[1745313297096,2.98249,1624.3,1624.2,43.84765155]
[1745313297292,2.98249,1624.3,1624.2,42.61618155]
[1745313297702,2.98249,1624.3,1624.2,43.43188155]
[1745313300301,2.98249,1624.3,1624.2,44.66335155]
[1745313300695,2.98249,1624.3,1624.2,43.43188155]
[1745313301204,2.98249,1624.3,1624.2,44.66335155]
[1745313302807,3.08888131,1624.3,1624.2,0.00474113]
[1745313303399,3.08888785,1624.3,1624.2,0.00474113]
[1745313304707,8.08888785,1624.3,1624.2,0.00474113]
[1745313305003,8.08889128,1624.3,1624.2,0.00474113]
[1745313305302,3.08889128,1624.3,1624.2,0.00474113]
[1745313306808,3.08887536,1624.3,1624.2,0.00474113]
[1745313307696,3.08887536,1624.3,1624.2,0.87884113]
[1745313308202,1.7511,1624.3,1624.2,0.87884113]
[1745313308399,12.35420141,1624.4,1624.3,1.23139]
[1745313308598,16.66020141,1624.4,1624.3,3.76349]
[1745313308798,16.66020141,1624.4,1624.3,6.97129]
[1745313309608,4.306,1624.4,1624.3,6.97129]
[1745313311910,12.35420141,1624.5,1624.4,1.23132]
[1745313312106,12.35420141,1624.5,1624.4,9.23662]
[1745313313111,10.27527596,1624.6,1624.5,1.23124]
[1745313313318,10.27527596,1624.6,1624.5,3.82434]
[1745313314119,10.27527596,1624.6,1624.5,10.14634]
[1745313314318,10.27527596,1624.6,1624.5,18.35414]
[1745313314914,18.54052408,1624.8,1624.7,1.23109]
[1745313315114,18.54052408,1624.8,1624.7,10.76089]
[1745313315416,18.54052408,1624.8,1624.7,15.76089]
[1745313315621,18.54052408,1624.8,1624.7,17.51209]
[1745313316224,0.00922196,1624.8,1624.7,17.51209]
[1745313316821,10.27217503,1625.1,1625.0,1.23086]
[1745313317123,10.27217503,1625.1,1625.0,51.56066]
[1745313317913,12.06537503,1625.1,1625.0,51.56066]
[1745313318323,12.06537503,1625.1,1625.0,45.23866]
[1745313319116,12.06537503,1625.1,1625.0,51.56066]
[1745313319620,13.29616503,1625.1,1625.0,51.56066]
[1745313319823,12.06537503,1625.1,1625.0,51.56066]
[1745313320126,12.06537503,1625.1,1625.0,45.23866]
[1745313321126,12.06537503,1625.1,1625.0,51.56066]
[1745313321327,12.06537503,1625.1,1625.0,53.21016]
[1745313321824,1.7932,1625.1,1625.0,53.21016]
[1745313322221,0.00922196,1625.2,1625.1,1.23079]
[1745313322429,1.77312196,1625.2,1625.1,3.02169]
[1745313323923,1.77312196,1625.2,1625.1,1.23079]
[1745313326235,3.00383196,1625.2,1625.1,1.23079]
[1745313326530,1.23094,1624.9,1624.8,4.43878]
[1745313326733,8.03554,1625.1,1624.9,1.23089]
[1745313326933,1.6386,1625.0,1624.9,1.23089]
[1745313327529,1.6386,1625.0,1624.9,4.64549]
[1745313328135,1.6386,1625.0,1624.9,10.96749]
[1745313331433,1.6386,1625.0,1624.9,4.64549]
[1745313332234,2.86946,1625.0,1624.9,4.64549]
[1745313332535,1.6386,1625.0,1624.9,4.64549]
[1745313333331,2.86946,1625.0,1624.9,4.64549]
[1745313334338,2.86946,1625.0,1624.9,1.23089]
[1745313334538,3.70836,1625.0,1624.9,1.23089]
[1745313334737,2.86946,1625.0,1624.9,1.23089]
[1745313335638,1.6386,1625.0,1624.9,1.23089]
[1745313336443,1.6386,1625.0,1624.9,2.88289]
[1745313336633,4.299,1625.1,1625.0,1.23086]
[1745313337138,7.24849,1625.1,1625.0,2.05556]
[1745313337339,7.24849,1625.1,1625.0,42.85556]
[1745313337539,8.06889,1625.1,1625.0,42.85556]
[1745313338038,8.06889,1625.1,1625.0,41.6247]
[1745313338536,8.06889,1625.1,1625.0,40.8]
[1745313339247,8.06889,1625.1,1625.0,42.03086]
[1745313340250,8.06889,1625.1,1624.9,2.88287]
[1745313340448,1.7321,1625.0,1624.9,2.88287]
[1745313340753,1.7321,1625.0,1624.9,1.23087]
[1745313341251,2.96296,1625.0,1624.9,40.8]
[1745313341952,4.80928,1625.0,1624.5,4.9023]
[1745313342153,1.23105,1624.8,1624.6,1.23111]
[1745313342355,2.6074,1624.7,1624.6,42.03111]
[1745313342853,2.6074,1624.7,1624.5,6.6101]
[1745313342854,10.68513,1624.7,1624.3,3.2078]
[1745313343154,1.23124,1624.5,1624.3,1.23136]
[1745313343358,1.7321,1624.4,1624.3,1.23136]
[1745313343556,1.7321,1624.4,1624.3,2.97726]
[1745313343753,1.7321,1624.4,1624.3,46.98506]
[1745313344347,2.96342,1624.4,1624.3,40.8]
[1745313344553,3.85262,1624.4,1624.3,40.8]
[1745313349461,3.85262,1624.4,1624.3,42.4868]
[1745313349762,3.85262,1624.4,1624.3,40.8]
[1745313352663,5.5303,1624.5,1624.3,45.23916]
[1745313352864,7.2296,1624.5,1624.4,2.4917]
[1745313353066,7.2296,1624.5,1624.4,3.72302]
[1745313353264,5.9983,1624.5,1624.4,3.72302]
[1745313353464,7.22954,1624.5,1624.4,2.4917]
[1745313356671,1.6993,1624.5,1624.4,3.72302]
[1745313357372,2.93054,1624.5,1624.4,3.72302]
[1745313357674,1.23121,1624.6,1624.4,3.72302]
[1745313357875,2.89511,1624.6,1624.5,2.6102]
[1745313358268,2.89511,1624.6,1624.5,43.4102]
[1745313358470,1.23132,1624.4,1624.2,1.23615113]
[1745313358769,2.5165,1624.5,1624.3,2.12659]
[1745313358969,3.74777,1624.5,1624.4,40.8]
[1745313359667,3.74777,1624.5,1624.4,42.6059]
[1745313360062,3.74777,1624.5,1624.4,40.8]
[1745313367579,1.23123,1624.6,1624.4,45.23912]
[1745313367779,2.86843,1624.6,1624.5,2.6057]
[1745313368679,1.23124,1624.5,1624.4,40.8]
[1745313368878,2.90504,1624.5,1624.4,40.8]
[1745313369081,3.78294,1624.5,1624.4,40.8]
[1745313370077,12.36342337,1625.2,1624.4,44.0078]
[1745313370281,2.90481,1624.8,1624.7,3.2078]
[1745313370482,7.19981,1624.8,1624.7,3.4146]
[1745313370678,10.9688,1624.8,1624.5,5.8064]
[1745313370878,1.23117,1624.6,1624.5,6.6224]
[1745313371079,1.23117,1624.6,1624.5,3.4146]
[1745313371280,1.23124,1624.5,1624.4,40.8]
[1745313371481,2.92624,1624.5,1624.4,41.616]
[1745313376891,1.23139,1624.3,1624.2,0.00474113]
[1745313377089,4.43919,1624.3,1624.2,0.00474113]
[1745313377589,7.02839,1624.3,1624.2,0.00474113]
[1745313377788,7.02839,1624.3,1624.2,40.80474113]
[1745313381896,3.82059,1624.3,1624.2,40.80474113]
[1745313382196,1.7007,1624.3,1624.2,43.82381113]
[1745313382593,1.23139,1624.4,1624.2,43.82381113]
[1745313382784,2.99119,1624.4,1624.3,2.6196]
[1745313382990,2.99119,1624.4,1624.3,3.5032]
[1745313383885,1.23139,1624.3,1624.2,42.60284113]
[1745313384090,2.88979,1624.3,1624.2,43.48644113]
[1745313384290,2.88979,1624.3,1624.2,41.68834113]
[1745313387400,1.6584,1624.3,1624.2,42.91981113]
[1745313387797,1.6584,1624.3,1624.2,44.63881113]
[1745313388099,5.1574,1624.5,1624.4,1.23132]
[1745313388294,6.0487,1624.5,1624.4,1.23132]
[1745313388494,12.35420141,1624.6,1624.5,1.23124]
[1745313388697,12.35420141,1624.6,1624.5,7.02134]
[1745313388997,12.35420141,1624.6,1624.5,12.02134]
[1745313389198,12.35420141,1624.6,1624.5,18.34334]
[1745313389392,12.35420141,1624.7,1624.6,1.23117]
[1745313389602,12.35420141,1624.7,1624.6,2.91077]
[1745313393001,7.2227,1624.9,1624.7,1.23109]
[1745313393202,7.2227,1624.9,1624.8,3.73141]
[1745313393502,7.2227,1624.9,1624.8,4.60761]
[1745313393895,5.9917,1624.9,1624.8,4.60761]
[1745313394406,7.22264,1624.9,1624.8,1.6996]
[1745313394707,7.22264,1624.9,1624.8,0.8762]
[1745313395703,7.22264,1624.9,1624.8,2.10721]
[1745313395906,7.22264,1624.9,1624.8,0.8762]
[1745313396104,5.9917,1624.9,1624.8,2.10721]
[1745313397897,5.9917,1624.9,1624.8,4.65641]
[1745313398098,16.65342337,1625.2,1624.8,4.65641]
[1745313398397,19.61935337,1625.2,1625.1,1.23079]
[1745313398598,17.88415337,1625.2,1625.1,1.23079]
[1745313398802,22.88415337,1625.2,1625.1,1.23079]
[1745313399003,21.65342337,1625.2,1624.8,1.7797]
[1745313399207,1.23089,1625.0,1624.8,3.01068]
[1745313399703,2.11979,1625.0,1624.8,3.01068]
[1745313400607,0.8889,1625.0,1624.8,3.01068]
[1745313400907,1.23094,1624.9,1624.8,0.8762]
[1745313401812,0.8889,1625.0,1624.9,1.23094]
[1745313402107,5.52995196,1625.2,1624.9,5.29778]
[1745313402299,5.52995196,1625.2,1624.9,5.29777]
[1745313402496,5.52995196,1625.2,1624.9,7.10387]
[1745313402702,1.23079,1625.1,1624.9,7.10387]
[1745313402911,2.08989,1625.1,1624.9,7.10387]
[1745313403110,2.08989,1625.1,1624.9,3.89607]
[1745313403903,1.23086,1625.0,1624.9,2.6652]
[1745313404104,2.08995,1625.1,1624.9,2.6652]
[1745313404614,1.23086,1625.0,1624.8,0.8762]
[1745313404809,1.23092,1625.0,1624.8,0.8762]
[1745313405111,1.23094,1624.9,1624.8,0.8762]
[1745313406013,1.23101,1624.8,1624.7,4.0711]
[1745313406813,1.23101,1624.8,1624.7,5.30219]
[1745313407015,1.23099,1624.9,1624.7,5.30219]
[1745313407216,8.01801,1625.1,1624.7,5.30219]
[1745313407720,1.23101,1624.8,1624.7,4.0711]
[1745313408111,1.7332,1625.1,1624.7,4.0711]
[1745313408315,1.23089,1625.0,1624.8,1.23096]
[1745313408520,2.96405,1625.1,1624.9,1.23094]
[1745313408916,2.08995,1625.1,1625.0,0.8533]
[1745313414722,3.72875,1625.1,1625.0,0.8533]
[1745313415119,3.72875,1625.1,1624.7,10.3931]
[1745313415120,1.23098,1624.9,1624.7,11.62415]
[1745313415323,1.23098,1624.9,1624.8,0.8318]
[1745313415527,1.23098,1624.9,1624.8,2.06281]
[1745313415831,2.86978,1624.9,1624.8,2.06281]
[1745313417120,1.6388,1624.9,1624.5,4.43903]